fUSD/lending_fUSD_20251126
["ID","MTS","AMOUNT","RATE_DAILY","PERIOD"]
[394933432,1764161446704,-151.0,0.00017989,2]
[394933433,1764161446713,-151.0,0.00017989,2]
[394933434,1764161446723,-151.0,0.00017989,2]
[394933435,1764161446732,-151.0,0.00017989,2]
[394933436,1764161446741,-151.0,0.00017989,2]
[394933437,1764161446751,-178.32601142,0.00017989,2]
[394933438,1764161446760,-332.00074354,0.00017999,2]
[394933439,1764161446770,-500.0,0.00017999,2]
[394933440,1764161446779,-500.0,0.00017999,2]
[394933441,1764161446789,-500.0,0.00017999,2]
[394933442,1764161446800,-500.0,0.00017999,2]
[394933443,1764161446809,-500.0,0.00017999,2]
[394933444,1764161446819,-500.0,0.00017999,2]
[394933445,1764161446829,-522.25037001,0.00017999,2]
[394933446,1764161446841,-500.0,0.00017999,2]
[394933447,1764161446850,-500.0,0.00017999,2]
[394933448,1764161446861,-500.0,0.00017999,2]
[394933449,1764161446871,-500.0,0.00017999,2]
[394933450,1764161446881,-500.0,0.00017999,2]
[394933451,1764161446890,-500.0,0.00017999,2]
[394933452,1764161446901,-500.0,0.00017999,2]
[394933453,1764161446909,-500.0,0.00017999,2]
[394933454,1764161446920,-500.0,0.00017999,2]
[394933455,1764161446929,-500.0,0.00017999,2]
[394933456,1764161446938,-500.0,0.00017999,2]
[394933457,1764161446947,-642.10123896,0.00017999,2]
[394933458,1764161446956,-500.0,0.00017999,2]
[394933459,1764161446964,-500.0,0.00017999,2]
[394933460,1764161446973,-201.42358097,0.00017999,2]
[394933461,1764161446982,-500.0,0.00017999,2]
[394933462,1764161446991,-500.0,0.00017999,2]
[394933463,1764161447002,-500.0,0.00017999,2]
[394933464,1764161447013,-231.64720255,0.00017999,2]
[394933465,1764161447023,-500.0,0.00017999,2]
[394933466,1764161447032,-510.75391486,0.00017999,2]
[394933467,1764161447041,-504.54484366,0.00017999,2]
[394933468,1764161447051,-500.0,0.00017999,2]
[394933469,1764161447059,-500.0,0.00017999,2]
[394933470,1764161447068,-500.0,0.00017999,2]
[394933471,1764161447077,-500.0,0.00017999,2]
[394933472,1764161447086,-500.0,0.00017999,2]
[394933473,1764161447096,-500.0,0.00017999,2]
[394933474,1764161447106,-500.0,0.00017999,2]
[394933475,1764161447114,-500.0,0.00017999,2]
[394933476,1764161447123,-500.0,0.00017999,2]
[394933477,1764161447133,-500.0,0.00017999,2]
[394933478,1764161447142,-500.0,0.00017999,2]
[394933479,1764161447153,-507.06907365,0.00017999,2]
[394933480,1764161447162,-500.0,0.00017999,2]
[394933481,1764161447171,-500.0,0.00017999,2]
[394933482,1764161447181,-500.0,0.00017999,2]
[394933483,1764161447193,-500.0,0.00017999,2]
[394933484,1764161447203,-500.0,0.00017999,2]
[394933485,1764161447212,-500.0,0.00017999,2]
[394933486,1764161447221,-500.0,0.00017999,2]
[394933487,1764161447232,-292.68,0.00017999,2]
[394933488,1764161447242,-515.50012945,0.00017999,2]
[394933489,1764161447252,-225.84452904,0.00017999,2]
[394933490,1764161447262,-500.0,0.00017999,2]
[394933491,1764161447272,-214.3775835,0.00017999,2]
[394933492,1764161447285,-380.64557977,0.00017999,2]
[394933493,1764161447295,-232.97251994,0.00018,2]
[394933494,1764161447305,-125346.11706154,0.00018,2]
[394933495,1764161447317,-31900.85927634,0.00018,2]
[394933496,1764161447329,-21605.12295052,0.00018,2]
[394933497,1764161447339,-14431.47746184,0.00018,2]
[394933498,1764161447351,-421.35,0.00018,2]
[394933499,1764161467949,500.0,0.00042058,50]
[394933500,1764161468386,578.20924308,0.00042058,50]
[394933501,1764161468592,500.0,0.00042058,50]
[394933502,1764161470630,500.0,0.00042058,50]
[394933503,1764161471283,500.0,0.00042058,50]
[394933504,1764161471994,500.0,0.00042058,50]
[394933505,1764161472502,500.0,0.00042058,50]
[394933506,1764161473144,500.0,0.00042058,50]
[394933507,1764161474208,500.0,0.00042058,50]
[394933508,1764161474297,500.0,0.00042058,50]
[394933509,1764161474856,500.0,0.00042058,50]
[394933510,1764161474908,500.0,0.00042058,50]
[394933511,1764161475490,500.0,0.00042058,50]
[394933512,1764161475538,500.0,0.00042058,50]
[394933513,1764161476124,500.0,0.00042058,50]
[394933514,1764161476169,500.0,0.00042058,50]
[394933515,1764161476737,500.0,0.00042058,50]
[394933516,1764161476784,500.0,0.00042058,50]
[394933517,1764161477352,500.0,0.00042058,50]
[394933518,1764161477397,500.0,0.00042058,50]
[394933519,1764161478008,500.0,0.00042058,50]
[394933520,1764161478611,500.0,0.00042058,50]
[394933521,1764161511115,998.0,0.00022,30]
[394933522,1764161524973,382.06463809,0.00042058,50]
[394933523,1764161531140,469.27184603,0.00042058,50]
[394933524,1764161709824,173.3619777,0.00042058,120]
[394933525,1764161853615,158.55,0.00013699,2]
[394933526,1764161961017,1460.14291,0.00042058,30]
[394933527,1764162044234,154.71,0.0002006,30]
[394933528,1764162072327,1506.8,0.00025,120]
[394933529,1764162175228,300.67764239,0.00042058,30]
[394933530,1764162195551,10000.0,0.00042058,120]
[394933531,1764162231552,10000.0,0.00042058,120]
[394933540,1764162631548,-1101.20279697,0.00016199,2]
[394933541,1764162631559,-98.79720303,0.00016199,2]
[394933542,1764162631569,-226.2029011,0.00016199,2]
[394933543,1764162631581,-73.7970989,0.00016199,2]
[394933544,1764162631591,-1200.0,0.00016199,2]
[394933545,1764162631600,-300.0,0.00016199,2]
[394933546,1764162631610,-300.0,0.00016199,2]
[394933547,1764162631618,-150.0,0.000162,2]
[394933548,1764162631627,-150.0,0.000162,2]
[394933549,1764162631636,-150.0,0.000162,2]
[394933550,1764162631646,-150.0,0.000162,2]
[394933551,1764162631655,-150.0,0.000162,2]
[394933552,1764162631664,-150.0,0.000162,2]
[394933553,1764162631673,-151.08419599,0.000162,2]
[394933554,1764162631683,-150.0,0.000162,2]
[394933555,1764162631691,-150.0,0.000162,2]
[394933556,1764162631700,-42.7501386,0.000162,2]
[394933557,1764162631717,-107.87990309,0.000162,2]
[394933558,1764162631727,-150.0,0.000162,2]
[394933559,1764162631736,-155.8140463,0.000162,2]
[394933560,1764162631747,-150.0,0.000162,2]
[394933561,1764162631756,-150.0,0.00016267,2]
[394933562,1764162631766,-150.0,0.00016267,2]
[394933563,1764162631775,-150.0,0.00016306,2]
[394933564,1764162631786,-150.0,0.0001632,2]
[394933565,1764162631796,-3.27275575,0.00016333,2]
[394933566,1764162631807,-146.72724425,0.00016333,2]
[394933567,1764162631816,-150.0,0.00016333,2]
[394933568,1764162631825,-150.0,0.00016338,2]
[394933569,1764162631834,-150.0,0.00016338,2]
[394933570,1764162631844,-150.0,0.00016364,2]
[394933571,1764162631853,-150.0,0.000164,2]
[394933572,1764162631862,-150.0,0.000164,2]
[394933573,1764162631871,-150.0,0.00016412,2]
[394933574,1764162631881,-2656.66,0.00016438,2]
[394933575,1764162631890,-150.0,0.0001644,2]
[394933576,1764162631900,-150.0,0.00016467,2]
[394933577,1764162631909,-150.0,0.00016467,2]
[394933578,1764162631918,-15.99338093,0.00016477,2]
[394933579,1764162631932,-134.00661907,0.00016477,2]
[394933580,1764162631941,-150.0,0.00016477,2]
[394933581,1764162631951,-150.0,0.00016518,2]
[394933582,1764162631960,-150.0,0.00016527,2]
[394933583,1764162631970,-150.0,0.00016533,2]
[394933584,1764162631979,-150.0,0.00016533,2]
[394933586,1764162631989,-150.0,0.0001656,2]
[394933587,1764162631998,-150.0,0.0001656,2]
[394933589,1764162632007,-150.0,0.000166,2]
[394933591,1764162632016,-150.0,0.000166,2]
[394933594,1764162632026,-150.0,0.00016615,2]
[394933596,1764162632035,-150.0,0.00016615,2]
[394933598,1764162632044,-150.0,0.00016624,2]
[394933599,1764162632054,-150.0,0.00016667,2]
[394933602,1764162632063,-150.0,0.00016667,2]
[394933603,1764162632072,-150.0,0.0001668,2]
[394933606,1764162632081,-150.0,0.00016691,2]
[394933607,1764162632090,-150.0,0.00016729,2]
[394933610,1764162632099,-550.0,0.00016733,2]
[394933611,1764162632109,-150.0,0.00016733,2]
[394933613,1764162632118,-150.0,0.00016733,2]
[394933615,1764162632129,-150.0,0.00016754,2]
[394933617,1764162632139,-150.0,0.00016754,2]
[394933619,1764162632150,-150.0,0.000168,2]
[394933621,1764162632159,-150.0,0.000168,2]
[394933623,1764162632169,-150.0,0.000168,2]
[394933625,1764162632178,-150.0,0.00016835,2]
[394933627,1764162632187,-150.0,0.00016855,2]
[394933630,1764162632196,-150.0,0.00016867,2]
[394933631,1764162632205,-150.0,0.00016867,2]
[394933633,1764162632214,-150.0,0.00016892,2]
[394933635,1764162632223,-150.0,0.00016892,2]
[394933637,1764162632232,-150.0,0.0001692,2]
[394933639,1764162632242,-150.0,0.0001692,2]
[394933641,1764162632250,-150.0,0.00016933,2]
[394933643,1764162632259,-150.0,0.00016933,2]
[394933645,1764162632268,-150.0,0.00016941,2]
[394933647,1764162632277,-150.0,0.00017,2]
[394933649,1764162632287,-150.0,0.00017,2]
[394933651,1764162632297,-150.0,0.00017018,2]
[394933653,1764162632305,-150.0,0.00017031,2]
[394933655,1764162632314,-150.0,0.00017031,2]
[394933657,1764162632323,-150.0,0.0001704,2]
[394933660,1764162632333,-150.0,0.00017047,2]
[394933661,1764162632342,-150.0,0.00017067,2]
[394933663,1764162632352,-150.0,0.00017067,2]
[394933665,1764162632365,-150.0,0.000171,2]
[394933668,1764162632375,-150.0,0.000171,2]
[394933670,1764162632384,-150.0,0.00017133,2]
[394933671,1764162632393,-150.0,0.00017133,2]
[394933674,1764162632403,-150.0,0.00017153,2]
[394933675,1764162632412,-150.0,0.0001716,2]
[394933677,1764162632421,-150.0,0.00017169,2]
[394933679,1764162632430,-150.0,0.00017169,2]
[394933681,1764162632439,-150.0,0.00017182,2]
[394933683,1764162632448,-150.0,0.000172,2]
[394933685,1764162632458,-150.0,0.000172,2]
[394933688,1764162632468,-150.0,0.00017259,2]
[394933689,1764162632476,-150.0,0.00017267,2]
[394933691,1764162632486,-150.0,0.00017267,2]
[394933693,1764162632495,-150.0,0.0001728,2]
[394933695,1764162632504,-150.0,0.0001728,2]
[394933697,1764162632513,-150.0,0.00017308,2]
[394933699,1764162632522,-150.0,0.00017308,2]
[394933701,1764162632531,-150.0,0.00017333,2]
[394933703,1764162632540,-150.0,0.00017333,2]
[394933705,1764162632549,-150.0,0.00017345,2]
[394933707,1764162632558,-150.0,0.00017365,2]
[394933709,1764162632567,-150.0,0.000174,2]
[394933711,1764162632576,-150.0,0.000174,2]
[394933713,1764162632586,-150.0,0.000174,2]
[394933715,1764162632595,-150.0,0.00017446,2]
[394933717,1764162632604,-150.0,0.00017446,2]
[394933719,1764162632613,-150.0,0.00017467,2]
[394933721,1764162632622,-150.0,0.00017467,2]
[394933723,1764162632630,-150.0,0.00017471,2]
[394933725,1764162632640,-150.0,0.00017509,2]
[394933727,1764162632649,-150.0,0.0001752,2]
[394933729,1764162632659,-150.0,0.00017533,2]
[394933731,1764162632668,-150.0,0.00017533,2]
[394933733,1764162632678,-150.0,0.00017576,2]
[394933735,1764162632687,-150.0,0.00017585,2]
[394933737,1764162632697,-150.0,0.00017585,2]
[394933739,1764162632707,-150.0,0.000176,2]
[394933741,1764162632721,-150.0,0.000176,2]
[394933743,1764162632730,-150.0,0.0001764,2]
[394933745,1764162632740,-150.0,0.0001764,2]
[394933747,1764162632750,-150.0,0.00017667,2]
[394933749,1764162632759,-150.0,0.00017667,2]
[394933751,1764162632768,-150.0,0.00017673,2]
[394933753,1764162632778,-150.0,0.00017682,2]
[394933755,1764162632788,-287.0,0.00017707,2]
[394933757,1764162632798,-420.0,0.00017707,2]
[394933759,1764162632807,-420.0,0.00017707,2]
[394933761,1764162632817,-150.0,0.00017723,2]
[394933763,1764162632826,-150.0,0.00017723,2]
[394933765,1764162632835,-150.0,0.00017733,2]
[394933767,1764162632844,-150.0,0.00017733,2]
[394933769,1764162632854,-150.0,0.0001776,2]
[394933771,1764162632863,-150.0,0.00017788,2]
[394933773,1764162632872,-150.0,0.000178,2]
[394933775,1764162632881,-150.0,0.000178,2]
[394933777,1764162632891,-150.0,0.00017836,2]
[394933779,1764162632900,-150.0,0.00017862,2]
[394933781,1764162632909,-150.0,0.00017862,2]
[394933783,1764162632918,-150.0,0.00017867,2]
[394933785,1764162632927,-150.0,0.00017867,2]
[394933787,1764162632936,-150.0,0.0001788,2]
[394933789,1764162632946,-150.0,0.00017894,2]
[394933791,1764162632956,-167.84750742,0.000179,2]
[394933793,1764162632965,-6848.51497685,0.000179,2]
[394933795,1764162632974,-1458.24419045,0.000179,2]
[394933797,1764162632983,-164.53491855,0.000179,2]
[394933799,1764162632991,-894.56623914,0.000179,2]
[394933801,1764162633001,-150.0,0.00017933,2]
[394933803,1764162633010,-33.43557291,0.00017933,2]
[394933805,1764162633023,-116.56442709,0.00017933,2]
[394933807,1764162633032,-503.66867124,0.00017973,2]
[394933809,1764162633043,-500.68801786,0.00017973,2]
[394933811,1764162633051,-501.13690148,0.00017973,2]
[394933813,1764162633061,-500.97554257,0.00017973,2]
[394933815,1764162633070,-500.0,0.00017973,2]
[394933817,1764162633079,-152.86908653,0.00017973,2]
[394933819,1764162633091,-347.13091347,0.00017973,2]
[394933821,1764162633099,-505.57442295,0.00017973,2]
[394933823,1764162633109,-501.70094683,0.00017973,2]
[394933825,1764162633119,-216.16488216,0.00017973,2]
[394933827,1764162633130,-283.83511784,0.00017973,2]
[394933829,1764162633139,-171.64298039,0.00017973,2]
[394933831,1764162633148,-501.56205241,0.00017973,2]
[394933833,1764162633157,-531.00503952,0.00017973,2]
[394933835,1764162633166,-503.31842824,0.00017973,2]
[394933837,1764162633175,-337.56282499,0.00017973,2]
[394933839,1764162633184,-500.0,0.00017973,2]
[394933841,1764162633194,-500.99656913,0.00017973,2]
[394933843,1764162633204,-558.6873026,0.00017973,2]
[394933845,1764162633213,-500.25619819,0.00017973,2]
[394933847,1764162633222,-500.57030653,0.00017973,2]
[394933849,1764162633231,-500.0,0.00017973,2]
[394933851,1764162633240,-503.24440307,0.00017973,2]
[394933853,1764162633250,-943.23,0.00017973,2]
[394933855,1764162633259,-328.13166737,0.0001799,2]
[394933857,1764162633268,-328.13166737,0.0001799,2]
[394933859,1764162633277,-328.13166737,0.0001799,2]
[394933861,1764162633287,-500.0,0.00017999,2]
[394933863,1764162633295,-569.204,0.00017999,2]
[394933865,1764162633305,-500.0,0.00017999,2]
[394933867,1764162633315,-500.0,0.00017999,2]
[394933869,1764162633324,-500.0,0.00017999,2]
[394933871,1764162633333,-162.15372602,0.00017999,2]
[394933873,1764162633342,-616.45190584,0.00017999,2]
[394933875,1764162633351,-158.09117032,0.00017999,2]
[394933877,1764162633361,-150.06430845,0.00017999,2]
[394933879,1764162633370,-500.0,0.00017999,2]
[394933881,1764162633379,-500.0,0.00017999,2]
[394933883,1764162633388,-641.67092588,0.00017999,2]
[394933885,1764162633398,-150.0,0.00018,2]
[394933887,1764162633408,-150.0,0.00018,2]
[394933889,1764162633417,-275.54642916,0.00018,2]
[394933891,1764162633427,-150.0,0.00018,2]
[394933893,1764162633437,-150.00000001,0.00018,2]
[394933895,1764162633446,-150.0,0.00018,2]
[394933897,1764162633456,-150.0,0.00018,2]
[394933899,1764162633468,-150.0,0.00018,2]
[394933901,1764162633477,-150.0,0.00018,2]
[394933903,1764162633487,-150.0,0.00018,2]
[394933905,1764162633497,-43276.52434088,0.00018,2]
[394933907,1764162633509,-994.12251902,0.00018,2]
[394933909,1764162633520,-326.03172292,0.00018,2]
[394933912,1764162633534,-627.03415411,0.00018,2]
[394934286,1764162637433,-397.59600822,0.00018,2]
[394934292,1764162637488,-664.98932389,0.00018,2]
[394934493,1764162639593,-839.15,0.00018,2]
[394934510,1764162639747,-490.067985,0.00018,2]
[394934517,1764162639801,-2098.95340702,0.00018,2]
[394934519,1764162639813,-682.75,0.00018,2]
[394934521,1764162639823,-2172.71,0.00018,2]
[394934527,1764162639866,-3990.95930724,0.00018,2]
[394934529,1764162639878,-4156.19990002,0.00018,2]
[394934547,1764162640032,-317.78,0.00018,2]
[394934549,1764162640042,-1892.54,0.00018,2]
[394934551,1764162640054,-1797.98,0.00018,2]
[394934938,1764162644272,-21010.702895,0.00018,2]
[394934948,1764162645558,-112273.65553088,0.00018,2]
[394934955,1764162645614,-422.7586,0.00018,2]
[394934964,1764162645683,-10597.72982464,0.00018,2]
[394934966,1764162645696,-25833.04004594,0.00018,2]
[394934976,1764162645795,-1293.51284163,0.00018,2]
[394934978,1764162645806,-1327.98447232,0.00018,2]
[394935019,1764162673948,693.3919763,0.0004206,30]
[394935020,1764162677668,500.0,0.0004206,30]
[394935021,1764162725525,500.0,0.0004206,30]
[394935022,1764162725904,500.0,0.0004206,30]
[394935023,1764162726148,500.0,0.0004206,30]
[394935024,1764162726544,500.0,0.0004206,30]
[394935025,1764162726787,500.0,0.0004206,30]
[394935026,1764162727137,500.0,0.0004206,30]
[394935027,1764162727748,500.0,0.0004206,30]
[394935028,1764162727804,620.0,0.0004206,30]
[394935029,1764162727860,500.0,0.0004206,30]
[394935030,1764162728342,500.0,0.0004206,30]
[394935031,1764162728454,500.0,0.0004206,30]
[394935032,1764162728946,500.0,0.0004206,30]
[394935033,1764162729109,500.0,0.0004206,30]
[394935034,1764162729559,500.0,0.0004206,30]
[394935035,1764162729729,500.0,0.0004206,30]
[394935036,1764162730171,500.0,0.0004206,30]
[394935037,1764162730368,500.0,0.0004206,30]
[394935038,1764162730772,500.0,0.0004206,30]
[394935039,1764162730987,500.0,0.0004206,30]
[394935040,1764162731557,500.0,0.0004206,30]
[394935041,1764162731787,500.0,0.0004206,30]
[394935042,1764162732368,500.0,0.0004206,30]
[394935043,1764162732414,500.0,0.0004206,30]
[394935044,1764162735799,500.0,0.0004206,30]
[394935047,1764163227201,153.65,0.0001061,2]
[394935048,1764163227435,153.65,0.00011368,2]
[394935049,1764163227629,153.65,0.00012126,2]
[394935050,1764163227840,153.65,0.00012884,2]
[394935051,1764163228055,153.65,0.00013642,2]
[394935052,1764163228283,153.65,0.000144,2]
[394935053,1764163526460,140161.36315699,0.00042059,30]
[394935054,1764163558652,597.60290945,0.00042059,90]
[394935074,1764163586433,165.59,0.00014669,2]
[394935244,1764163707214,291.86870745,0.00042059,90]
[394935245,1764163709807,151.12,0.00042059,120]
[394935246,1764163710472,3624.79975606,0.00042059,30]
[394935249,1764163715081,213.00002,0.00042059,50]
[394935251,1764163718368,11.41,0.00015,2]
[394935254,1764163777207,422.385896,0.00042059,30]
[394935255,1764163777510,422.385896,0.00042059,30]
[394935256,1764163777810,422.385896,0.00042059,30]
[394935257,1764163778180,422.385896,0.00042059,30]
[394935258,1764163778487,422.385896,0.00042059,30]
[394935259,1764163778799,422.385896,0.00042059,30]
[394935260,1764163779128,422.385896,0.00042059,30]
[394935261,1764163779474,422.385896,0.00042059,30]
[394935262,1764163779823,422.385896,0.00042059,30]
[394935263,1764163780184,422.385896,0.00042059,30]
[394935264,1764163780514,422.385896,0.00042059,30]
[394935265,1764163780815,422.385896,0.00042059,30]
[394935266,1764163781140,422.385896,0.00042059,30]
[394935267,1764163781458,422.385896,0.00042059,30]
[394935268,1764163781768,422.385896,0.00042059,30]
[394935269,1764163782086,422.385896,0.00042059,30]
[394935270,1764163782414,422.385896,0.00042059,30]
[394935271,1764163782717,422.385896,0.00042059,30]
[394935272,1764163783024,422.385896,0.00042059,30]
[394935273,1764163783318,422.385896,0.00042059,30]
[394935274,1764163809809,1430.9,0.00015158,30]
[394935275,1764163825778,151.0,0.00042059,50]
[394935285,1764163831604,-390.37271931,0.00015,2]
[394935286,1764163831619,-1375.61719073,0.00015,2]
[394935287,1764163831630,-429.07504532,0.00015,2]
[394935288,1764163831641,-153.65,0.00015158,2]
[394935289,1764163831651,-367.54041662,0.000154,2]
[394935290,1764163831689,-1798.13102982,0.000154,2]
[394935291,1764163831699,-153.65,0.00015916,2]
[394935292,1764163831708,-200.0,0.0001594,2]
[394935293,1764163831717,-406.49495038,0.00015952,2]
[394935294,1764163831726,-300.0,0.00015999,2]
[394935295,1764163831735,-1200.0,0.00015999,2]
[394935296,1764163831744,-46.37383019,0.00015999,2]
[394935297,1764163831760,-170.62616981,0.00015999,2]
[394935298,1764163831769,-13040.33883019,0.00016,4]
[394935299,1764163831782,-420.26169723,0.00016,4]
[394935300,1764163831792,-628.42,0.00016,4]
[394935588,1764163837559,-5897.02464768,0.00016,4]
[394935589,1764163837569,-150.0,0.00016052,2]
[394935590,1764163837578,-500.0,0.00016133,2]
[394935591,1764163837587,-500.0,0.00016133,2]
[394935592,1764163837597,-597.09628626,0.00016133,2]
[394935593,1764163837607,-500.0,0.00016133,2]
[394935594,1764163837619,-500.0,0.00016133,2]
[394935595,1764163837628,-503.02436121,0.00016133,2]
[394935596,1764163837640,-506.45525568,0.00016133,2]
[394935597,1764163837649,-500.0,0.00016133,2]
[394935598,1764163837658,-150.0,0.000162,2]
[394935599,1764163837667,-150.0,0.000162,2]
[394935600,1764163837676,-150.0,0.000162,2]
[394935601,1764163837689,-150.0,0.000162,2]
[394935602,1764163837698,-150.0,0.000162,2]
[394935603,1764163837708,-150.0,0.000162,2]
[394935604,1764163837717,-156.90510009,0.000162,2]
[394935605,1764163837726,-150.0,0.000162,2]
[394935606,1764163837735,-150.0,0.000162,2]
[394935607,1764163837744,-150.0,0.000162,2]
[394935608,1764163837753,-150.0,0.000162,2]
[394935609,1764163837763,-10892.00591625,0.000162,5]
[394935610,1764163837772,-150.0,0.0001656,2]
[394935611,1764163837782,-200.0,0.0001663,2]
[394935612,1764163837792,-150.0,0.0001665,2]
[394935613,1764163837801,-153.65,0.00016673,2]
[394935614,1764163837810,-1000.0,0.00016681,2]
[394935615,1764163837819,-1000.0,0.00016681,2]
[394935616,1764163837829,-1000.0,0.00016681,2]
[394935618,1764163837839,-1000.0,0.00016681,2]
[394935620,1764163837848,-1000.0,0.00016681,2]
[394935622,1764163837857,-150.0,0.000168,2]
[394935624,1764163837866,-2030.83727997,0.0001688,2]
[394935626,1764163837878,-5739.18585998,0.0001688,2]
[394935628,1764163837891,-28057.1412,0.0001688,2]
[394935634,1764163839753,-1725.12,0.0001688,2]
[394935635,1764163839864,-3492.21780358,0.0001688,2]
[394935636,1764163839874,-171.11165715,0.000169,2]
[394935637,1764163839883,-158.15368791,0.000169,2]
[394935638,1764163839893,-159.65798919,0.000169,2]
[394935639,1764163839903,-150.0,0.0001692,2]
[394935640,1764163839912,-500.0,0.00016973,2]
[394935641,1764163839922,-431.51633409,0.00016999,2]
[394935642,1764163839931,-500.0,0.00016999,2]
[394935643,1764163839941,-500.0,0.00016999,2]
[394935644,1764163839952,-500.0,0.00016999,2]
[394935645,1764163839961,-182.40788065,0.00016999,2]
[394935646,1764163839971,-500.0,0.00016999,2]
[394935647,1764163839980,-500.0,0.00016999,2]
[394935648,1764163839989,-500.0,0.00016999,2]
[394935649,1764163839998,-500.0,0.00016999,2]
[394935650,1764163840008,-500.0,0.00016999,2]
[394935651,1764163840017,-55364.72894605,0.00017,2]
[394935652,1764163840028,-1066.29794996,0.00017,2]
[394935653,1764163840039,-12975.28634251,0.00017,2]
[394935654,1764163840052,-533.48447,0.00017,2]
[394936000,1764163843693,-438.0,0.00017,2]
[394936006,1764163845760,-60322.08903079,0.00017,2]
[394936013,1764163845879,-821.8210004,0.00017,2]
[394936014,1764163845990,-945.56602351,0.00017,2]
[394936015,1764163846001,-1081.75005,0.00017,2]
[394936016,1764163846012,-4344.85547139,0.00017,2]
[394936018,1764164036737,500.0,0.00042059,120]
[394936019,1764164036982,500.0,0.00042059,120]
[394936020,1764164037210,247.36152697,0.00042059,120]
[394936025,1764164611028,1097.0,0.00042063,30]
[394936026,1764164613416,1097.0,0.00042063,30]
[394936027,1764164615870,507.26566415,0.00042063,30]
[394936028,1764164618288,1097.0,0.00042063,30]
[394936031,1764164855369,154.71,0.00019178,30]
[394936032,1764164919327,150.03,0.00013699,2]
[394936054,1764165031835,-456.83984742,0.00016013,2]
[394936055,1764165031846,-543.16015258,0.00016013,2]
[394936056,1764165031857,-1852.42,0.00016195,2]
[394936057,1764165031867,-300.0,0.00016199,2]
[394936058,1764165031876,-300.0,0.00016199,2]
[394936059,1764165031888,-1200.0,0.00016199,2]
[394936060,1764165031897,-150.0,0.000162,2]
[394936061,1764165031907,-150.0,0.000162,2]
[394936062,1764165031915,-150.0,0.000162,2]
[394936063,1764165031924,-150.0,0.000162,2]
[394936064,1764165031933,-150.0,0.000162,2]
[394936065,1764165031942,-150.0,0.000162,2]
[394936066,1764165031951,-296.30908425,0.000162,2]
[394936067,1764165031960,-150.0,0.000162,2]
[394936068,1764165031977,-150.0,0.000162,2]
[394936069,1764165031989,-864.63,0.000162,2]
[394936070,1764165031999,-1196.02,0.00016297,2]
[394936072,1764165032013,-195.0,0.00016388,2]
[394936074,1764165032024,-851.50541808,0.00016474,2]
[394936076,1764165032041,-13.12458192,0.00016474,2]
[394936078,1764165032051,-150.0,0.000165,2]
[394936080,1764165032060,-1230.76791808,0.00016575,2]
[394936083,1764165032071,-1005.65380674,0.00016575,2]